[Event "41st Amateur D7"]
[Site "ChessGUI4"]
[Date "2013.07.08"]
[Round "21.5"]
[White "Shallow 1.0 64-bit"]
[Black "MadChess 1.2"]
[Result "1-0"]
[BlackElo "2200"]
[ECO "E31"]
[EventDate "2013.??.??"]
[TimeControl "40/1500:40/1500:40/1500"]
[WhiteElo "2200"]

{ i5 Quad } 1.d4 { [%eval 0,1] [%emt 0:00:00] } 1...Nf6
{ [%eval 0,1] [%emt 0:00:00] } 2.c4 { [%eval 0,1] [%emt 0:00:00] } 2...e6
{ [%eval 0,1] [%emt 0:00:00] } 3.Nc3 { [%eval 0,1] [%emt 0:00:00] } 3...Bb4
{ [%eval 0,1] [%emt 0:00:00] } 4.Bg5 { [%eval 0, 1] [%emt 0:00:00] } 4...c5
{ [%eval 0,1] [%emt 0:00:00] } 5.d5 { [%eval 0,1] [%emt 0: 00:00] } 5...h6
{ [%eval 0,1] [%emt 0:00:00] } 6.Bh4 { [%eval 0,1] [%emt 0:00:00] } 6...d6
{ [%eval 0,1] [%emt 0:00:00] } 7.e3 { [%eval 0,1] [%emt 0:00:00] } 7...Bxc3+
{ [%eval 0,1] [%emt 0:00:00] } 8.bxc3 { [%eval 0,1] [%emt 0:00:00] } 8...e5
{ [%eval 0,1] [%emt 0:00:00] } 9.Bd3 { [%eval -13,14] [%emt 0:00:42] } 9...e4
{ [%eval 26,12] [%emt 0:00:35] (e4) } 10.Bc2
{ [%eval -8,15] [%emt 0:00:42] (Bc2) } 10...Nbd7
{ [%eval 25,12] [%emt 0:00:38] (Nbd7) } 11.Qb1
{ [%eval -10,15] [%emt 0:00:42] (Bxf6) } 11...Qe7
{ [%eval 22,12] [%emt 0:00:33] (Qe7) } 12.Ne2
{ [%eval -10,14] [%emt 0:00:42] (Bxf6) } 12...g5
{ [%eval 33,13] [%emt 0:00:58] (O-O) } 13.Bg3
{ [%eval 0,14] [%emt 0: 00:42] (Bg3) } 13...O-O
{ [%eval 32,12] [%emt 0:00:53] (h5) } 14.h4
{ [%eval 33,13] [%emt 0:00:42] (Qb3) } 14...Nb6
{ [%eval 47,12] [%emt 0:00:33] (Ne5) } 15.hxg5
{ [%eval 33,14] [%emt 0:00:42] (hxg5) } 15...hxg5
{ [%eval 39,12] [%emt 0:00:19] (hxg5) } 16.Bb3
{ [%eval 31,13] [%emt 0:00:42] (Qb3) } 16...a5
{ [%eval 79,11] [%emt 0:00:40] (Bg4) } 17.a4
{ [%eval 41,14] [%emt 0:00:42] (a4) } 17...Bg4
{ [%eval 77,10] [%emt 0: 00:25] (Bf5) } 18.Bh2
{ [%eval 38,13] [%emt 0:00:42] (Qb2) } 18...Rab8
{ [%eval 81,9] [%emt 0:00:24] (Rfd8) } 19.Qb2
{ [%eval 33,13] [%emt 0:00:42] (Qc2) } 19...Rfe8
{ [%eval 77,10] [%emt 0:00:46] (Rfd8) } 20.Ra2
{ [%eval 33,12] [%emt 0:00:42] (Bg3) } 20...Kg7
{ [%eval 104,11] [%emt 0:01:27] (Red8) } 21.Ng3
{ [%eval 33,12] [%emt 0:00:42] (Ng3) } 21...Qc7
{ [%eval 73,10] [%emt 0:00:47] (Qc7) } 22.Qb1
{ [%eval 36,13] [%emt 0:00:42] (O-O) } 22...Kg8
{ [%eval 76,10] [%emt 0:00:46] (Qd7) } 23.Kd2
{ [%eval 36,13] [%emt 0:00:42] (O-O) } 23...Rbd8
{ [%eval 67,10] [%emt 0:00:45] (Kf8) } 24.Rb2
{ [%eval 37,13] [%emt 0:00:42] (Kc1) } 24...Ra8
{ [%eval 54,11] [%emt 0:02:14] (Rb8) } 25.f3
{ [%eval 76,13] [%emt 0:00:42] (Kc1) } 25...exf3
{ [%eval -17,12] [%emt 0:01:24] (exf3) } 26.gxf3
{ [%eval 78,13] [%emt 0:00:42] (gxf3) } 26...Qe7
{ [%eval -14,11] [%emt 0:00:13] (Qe7) } 27.Nf5
{ [%eval 112,14] [%emt 0:00:42] (Nf5) } 27...Bxf5
{ [%eval -55,12] [%emt 0:00:19] (Bxf5) } 28.Qxf5
{ [%eval 112,12] [%emt 0: 00:42] (Qxf5) } 28...Qxe3+
{ [%eval -136,12] [%emt 0:01:06] (Qxe3) } 29.Kd1
{ [%eval 233,13] [%emt 0:00:42] (Kd1) } 29...Re5
{ [%eval -142,12] [%emt 0:00:43] (Re5) } 30.Bxe5
{ [%eval 298,14] [%emt 0:00:42] (Bxe5) } 30...Qxe5
{ [%eval -204,13] [%emt 0:00: 27] (Qxe5) } 31.Qh3
{ [%eval 291,13] [%emt 0:00:42] (Qh3) } 31...Nfxd5
{ [%eval -178, 13] [%emt 0:00:16] (Nfxd5) } 32.Qh7+
{ [%eval 295,12] [%emt 0:00:42] (Qh7) } 32...Kf8
{ [%eval -178,13] [%emt 0:00:00] (Kf8) } 33.Qh6+
{ [%eval 310,13] [%emt 0:00:42] } 33...Ke7
{ [%eval -185,13] [%emt 0:00:29] (Ke7) } 34.cxd5
{ [%eval 310,12] [%emt 0:00: 42] (Re1) } 34...Qxc3
{ [%eval -166,13] [%emt 0:00:32] (Qxc3) } 35.Qxg5+
{ [%eval 318, 11] [%emt 0:00:42] (Qxg5) } 35...Kf8
{ [%eval -202,12] [%emt 0:00:30] (Kd7) } 36.Rhh2
{ [%eval 334,10] [%emt 0:00:42] (Qf4) } 36...Re8
{ [%eval -205,14] [%emt 0:01:01] (Qd4) } 37.Qh6+
{ [%eval 361,12] [%emt 0:00:42] (Qh6) } 37...Ke7
{ [%eval -280,14] [%emt 0: 01:09] (Ke7) } 38.Rbe2+
{ [%eval 364,12] [%emt 0:00:42] (Rbe2) } 38...Kd7
{ [%eval -261,16] [%emt 0:01:11] (Kd7) } 39.Qh3+
{ [%eval 370,12] [%emt 0:00:42] (Qh3) } 39...Kc7
{ [%eval -225,15] [%emt 0:00:25] (Kc7) } 40.Rxe8
{ [%eval 370,11] [%emt 0:00: 42] (Rxe8) } 40...Qxb3+
{ [%eval -236,14] [%emt 0:00:26] (Qxb3) } 41.Ke1
{ [%eval 371, 11] [%emt 0:00:37] (Ke1) } 41...Qxa4
{ [%eval -220,13] [%emt 0:00:24] (Qb4) } 42.Re7+
{ [%eval 407,11] [%emt 0:00:37] (Re7) } 42...Kb8
{ [%eval -245,14] [%emt 0:00:59] (Kb8) } 43.Qh8+
{ [%eval 413,12] [%emt 0:00:37] (Qh6) } 43...Ka7
{ [%eval -250,14] [%emt 0: 00:55] (Ka7) } 44.Rh7
{ [%eval 422,12] [%emt 0:00:37] (Rh7) } 44...Nxd5
{ [%eval -278, 16] [%emt 0:00:47] (Qb4) } 45.Rexf7
{ [%eval 458,11] [%emt 0:00:37] (Rexf7) } 45...Qb4+
{ [%eval -331,15] [%emt 0:00:25] (Qb4) } 46.Ke2
{ [%eval 455,11] [%emt 0:00: 37] (Kf1) } 46...Nc3+
{ [%eval -380,16] [%emt 0:02:22] (Nf4) } 47.Kf1
{ [%eval 483,9] [%emt 0:00:37] (Kf1) } 47...Qc4+
{ [%eval -380,14] [%emt 0:00:31] (Qc4) } 48.Kg1
{ [%eval 510,13] [%emt 0:00:37] (Kg1) } 48...Qd4+
{ [%eval -362,15] [%emt 0:00:30] (Qd4) } 49.Qxd4
{ [%eval 570,16] [%emt 0:00:37] (Qxd4) } 49...Ne2+
{ [%eval -473,15] [%emt 0:00:38] (cxd4) } 50.Kf2
{ [%eval 575,16] [%emt 0:00:37] (Kf2) } 50...Nxd4
{ [%eval -493,15] [%emt 0:00:52] (Nxd4) } 51.Rxb7+
{ [%eval 577,15] [%emt 0:00:37] (Rxb7) } 51...Ka6
{ [%eval -536,14] [%emt 0:00:24] (Ka6) } 52.Rb1
{ [%eval 584,15] [%emt 0: 00:37] (Rbd7) } 52...a4
{ [%eval -675,15] [%emt 0:03:31] (a4) } 53.Rh6
{ [%eval 587,14] [%emt 0:00:37] (Rd7) } 53...Nb5
{ [%eval -724,14] [%emt 0:00:42] (Ka5) } 1-0

[Event "41st Amateur D7"]
[Site "ChessGUI4"]
[Date "2013.07.08"]
[Round "22.1"]
[White "Tigran 2.3 64-bit"]
[Black "Carballo 0.8"]
[Result "0-1"]
[BlackElo "2273"]
[ECO "A21"]
[EventDate "2013.??.??"]
[TimeControl "40/1500:40/1500:40/1500"]
[WhiteElo "2289"]

{ i5 Quad } 1.c4 { [%eval 0,1] [%emt 0:00:00] } 1...f5
{ [%eval 0,1] [%emt 0:00:00] } 2.g3 { [%eval 0,1] [%emt 0:00:00] } 2...Nf6
{ [%eval 0,1] [%emt 0:00:00] } 3.Bg2 { [%eval 0,1] [%emt 0:00:00] } 3...e5
{ [%eval 0,1] [%emt 0:00:00] } 4.Nc3 { [%eval 0,1] [%emt 0:00:00] } 4...d6
{ [%eval 0,1] [%emt 0:00:00] } 5.d4 { [%eval 0,1] [%emt 0:00: 00] } 5...c6
{ [%eval 0,1] [%emt 0:00:00] } 6.Nf3 { [%eval 0,1] [%emt 0:00:00] } 6...e4
{ [%eval 0,1] [%emt 0:00:00] } 7.Ng5 { [%eval 0,1] [%emt 0:00:00] } 7...d5
{ [%eval 0,1] [%emt 0:00:00] } 8.cxd5 { [%eval 0,1] [%emt 0:00:00] } 8...cxd5
{ [%eval 0,1] [%emt 0: 00:00] } 9.O-O { [%eval 29,12] [%emt 0:00:42] } 9...h6
{ [%eval -14,13] [%emt 0:00:37] (Nc6) } 10.Nh3
{ [%eval 34,12] [%emt 0:00:43] (Nh3) } 10...Nc6
{ [%eval -13,13] [%emt 0:00:36] (g5) } 11.Nf4
{ [%eval 63,13] [%emt 0:00:35] (a3) } 11...g5
{ [%eval 4,15] [%emt 0:00:35] (Kf7) } 12.Ng6
{ [%eval 48,14] [%emt 0:00:43] (Ng6) } 12...Rg8
{ [%eval 2,15] [%emt 0:00:34] (Rh7) } 13.Nxf8
{ [%eval 64,13] [%emt 0:00:40] (Ne5) } 13...Kxf8
{ [%eval 12,13] [%emt 0:00:33] (Kxf8) } 14.f3
{ [%eval 58,12] [%emt 0:00: 43] (Be3) } 14...Kg7
{ [%eval 15,13] [%emt 0:00:32] (exf3) } 15.Be3
{ [%eval 51,12] [%emt 0:00:43] (Be3) } 15...exf3
{ [%eval 11,12] [%emt 0:00:32] (Be6) } 16.Rxf3
{ [%eval 47,12] [%emt 0:00:43] (Bxf3) } 16...Qe7
{ [%eval 18,12] [%emt 0:00:31] (Kh8) } 17.Bd2
{ [%eval 38,12] [%emt 0:00:42] (Qd3) } 17...Be6
{ [%eval 14,12] [%emt 0:00:30] (Be6) } 18.e3
{ [%eval 35,12] [%emt 0:00:44] (e3) } 18...Rac8
{ [%eval 19,12] [%emt 0: 00:29] (Kh8) } 19.Rc1
{ [%eval 32,12] [%emt 0:00:44] (Rc1) } 19...Qd7
{ [%eval 21,12] [%emt 0:00:29] (Kh8) } 20.h3
{ [%eval 45,12] [%emt 0:00:39] (b3) } 20...Ne4
{ [%eval 32,12] [%emt 0:00:28] (Rgf8) } 21.Be1
{ [%eval 40,12] [%emt 0:00:45] (Be1) } 21...Qd6
{ [%eval 36,11] [%emt 0:00:27] (Rgf8) } 22.Qb3
{ [%eval 41,11] [%emt 0:00:45] (a3) } 22...Qd7
{ [%eval 34,12] [%emt 0:00:26] (Qb4) } 23.Rf1
{ [%eval 37,12] [%emt 0: 00:44] (Qd1) } 23...Na5
{ [%eval 33,12] [%emt 0:00:26] (Rgf8) } 24.Qd1
{ [%eval 21,14] [%emt 0:00:46] (Qd1) } 24...Nc4
{ [%eval 31,13] [%emt 0:00:25] (Nc4) } 25.Qe2
{ [%eval 20,13] [%emt 0:00:45] (Qe2) } 25...Ncd6
{ [%eval 37,12] [%emt 0:00:24] (Ncd6) } 26.Rc2
{ [%eval 13,13] [%emt 0:00:46] (Rc2) } 26...a6
{ [%eval 35,11] [%emt 0:00:24] (Nxc3) } 27.h4
{ [%eval 19,12] [%emt 0:00:36] (h4) } 27...Nf6
{ [%eval 44,12] [%emt 0: 00:23] (gxh4) } 28.b3
{ [%eval 22,12] [%emt 0:00:47] (a4) } 28...Bf7
{ [%eval 49,11] [%emt 0:00:23] (Kh8) } 29.Na4
{ [%eval 33,11] [%emt 0:00:39] (Bh3) } 29...Rxc2
{ [%eval 53,13] [%emt 0:00:22] (Bh5) } 30.Qxc2
{ [%eval 15,12] [%emt 0:00:48] (Qxc2) } 30...Ng4
{ [%eval 64,12] [%emt 0:00:21] (Ng4) } 31.Rf3
{ [%eval 14,13] [%emt 0:00:50] (Qc1) } 31...Re8
{ [%eval 73,13] [%emt 0:00:21] (Re8) } 32.Qc1
{ [%eval 3,12] [%emt 0:00:49] (Bd2) } 32...gxh4
{ [%eval 74,11] [%emt 0:00:20] (Ne4) } 33.gxh4
{ [%eval 18,12] [%emt 0:00:50] (gxh4) } 33...Ne4
{ [%eval 50,13] [%emt 0:00:20] (Ne4) } 34.Bf1
{ [%eval 6,12] [%emt 0:00:41] (Nc5) } 34...Qd6
{ [%eval 76,11] [%emt 0:00:19] (b5) } 35.Rh3
{ [%eval -4,12] [%emt 0:00:51] (Qb2) } 35...Qe6
{ [%eval 81,11] [%emt 0: 00:19] (Qe6) } 36.Qd1
{ [%eval -11,12] [%emt 0:00:54] (Bg2) } 36...Qc6
{ [%eval 109,11] [%emt 0:00:18] (Bh5) } 37.Bg2
{ [%eval -12,12] [%emt 0:00:45] (Bg2) } 37...b5
{ [%eval 84,12] [%emt 0:00:18] (h5) } 38.Nb2
{ [%eval 0,13] [%emt 0:01:01] (Nb2) } 38...Nef6
{ [%eval 122,12] [%emt 0:00:17] (Nc3) } 39.Bd2
{ [%eval -54,14] [%emt 0:01: 04] (Qe2) } 39...Rc8
{ [%eval 123,14] [%emt 0:00:17] (Rc8) } 40.Nd3
{ [%eval -75,15] [%emt 0:01:02] (Nd3) } 40...Qc2
{ [%eval 147,14] [%emt 0:00:17] (Qc2) } 41.Qxc2
{ [%eval -84,15] [%emt 0:00:33] (Qe2) } 41...Rxc2
{ [%eval 177,17] [%emt 0:00:54] (Rxc2) } 42.Be1
{ [%eval -83,14] [%emt 0:00:34] (Be1) } 42...Rxa2
{ [%eval 181,17] [%emt 0: 00:52] (Rxa2) } 43.Bf1
{ [%eval -106,14] [%emt 0:00:27] (b4) } 43...Ne4
{ [%eval 183, 17] [%emt 0:00:51] (a5) } 44.b4
{ [%eval -106,15] [%emt 0:00:34] (Rf3) } 44...Ra1
{ [%eval 192,16] [%emt 0:00:50] (Bh5) } 45.Kg2
{ [%eval -115,14] [%emt 0:00:34] (Kg2) } 45...Be6
{ [%eval 189,16] [%emt 0:00:48] (Nd6) } 46.Kg1
{ [%eval -111,14] [%emt 0:00:35] (Rf3) } 46...h5
{ [%eval 183,17] [%emt 0:00:47] (h5) } 47.Rf3
{ [%eval -118,15] [%emt 0:00:30] (Rf3) } 47...Bd7
{ [%eval 186,17] [%emt 0:00:46] (f4) } 48.Rh3
{ [%eval -138,15] [%emt 0:00:35] (Kg2) } 48...Nd6
{ [%eval 227,16] [%emt 0:00:45] (Kg8) } 49.Bc3
{ [%eval -150,15] [%emt 0:00:35] (Rg3) } 49...Rb1
{ [%eval 266,16] [%emt 0: 00:44] (Rb1) } 50.Rf3
{ [%eval -212,15] [%emt 0:00:35] (Rf3) } 50...Nc4
{ [%eval 230, 16] [%emt 0:00:43] (Nc4) } 51.Nf4
{ [%eval -214,14] [%emt 0:00:31] (Nf4) } 51...a5
{ [%eval 278,15] [%emt 0:00:42] (Rc1) } 52.bxa5
{ [%eval -152,15] [%emt 0:00:35] (bxa5) } 52...b4
{ [%eval 257,15] [%emt 0:00:40] (b4) } 53.Bxb4
{ [%eval -226,15] [%emt 0:00:36] (Bxb4) } 53...Rxb4
{ [%eval 280,15] [%emt 0:00:39] (Rxb4) } 54.Bxc4
{ [%eval -249,14] [%emt 0:00:35] (Nxd5) } 54...dxc4
{ [%eval 356,14] [%emt 0:00:38] (dxc4) } 55.Rf1
{ [%eval -266,14] [%emt 0:00:36] (Rf1) } 55...Ra4
{ [%eval 356,13] [%emt 0:00:37] (Ra4) } 56.Rb1
{ [%eval -349,14] [%emt 0:00:36] (Nxh5) } 56...Kf8
{ [%eval 384,13] [%emt 0:00:37] (Kf7) } 57.Nxh5
{ [%eval -309,14] [%emt 0:00:36] (Nxh5) } 57...Rxa5
{ [%eval 381,14] [%emt 0:00:36] (Rxa5) } 58.Nf4
{ [%eval -305,13] [%emt 0:00:36] (Rc1) } 58...Bc6
{ [%eval 379,13] [%emt 0:00:35] (Ra3) } 59.Rf1
{ [%eval -371,13] [%emt 0:00:36] (Rc1) } 59...c3
{ [%eval 453,14] [%emt 0:00:34] (Ke7) } 60.Rc1
{ [%eval -417,14] [%emt 0:00:36] (Rc1) } 60...c2
{ [%eval 482,14] [%emt 0:00: 33] (c2) } 61.Kf1
{ [%eval -433,14] [%emt 0:00:36] (Kf1) } 61...Be4
{ [%eval 480,15] [%emt 0:00:32] (Be4) } 62.Ke2
{ [%eval -407,15] [%emt 0:00:37] (Ke2) } 62...Ra3
{ [%eval 480,15] [%emt 0:00:31] (Ra3) } 63.Ne6+
{ [%eval -439,15] [%emt 0:00:37] (Ne6) } 63...Ke7
{ [%eval 519,15] [%emt 0:00:31] (Kg8) } 64.Nc5
{ [%eval -445,16] [%emt 0:00:35] (Nc5) } 64...Nxe3
{ [%eval 535,15] [%emt 0:00:30] (Nxe3) } 65.h5
{ [%eval -491,15] [%emt 0:00:37] (h5) } 65...Kf6
{ [%eval 564,15] [%emt 0:00:29] (Bd5) } 66.h6
{ [%eval -496,14] [%emt 0:00:38] (h6) } 66...Kg6
{ [%eval 598,16] [%emt 0:00:28] (Bd5) } 67.Nxe4
{ [%eval -599,15] [%emt 0:00:38] (Nxe4) } 67...fxe4
{ [%eval 632,14] [%emt 0:00:28] (fxe4) } 68.d5
{ [%eval -756,15] [%emt 0:00:35] (Rh1) } 0-1